Cogmind - Beta 16 @@@ ROGUE MODE // 2025.12.03 @ 20:30:20 Player: Vyckalino Result: Destroyed by G-47 Trooper with Particle Gun Performance ------------- Evolutions (1) 500 Regions Visited (2) 400 Robots Destroyed (26) 130 Value Destroyed (628) 628 Prototype IDs (0) 0 Alien Tech Used (0) 0 Bonus (0) 0 TOTAL SCORE: 1658 Bonus ------- None Cogmind --------- Core Integrity 0/400 Matter 139/300 Energy 100/100 System Corruption 1% Temperature Cool (9) Movement Core (50) Location -9/Materials Parts ------- > --- POWER (1) -------- (None) > --- PROPULSION (4) --- (None) > --- UTILITY (2) ------ Structural Scanner Terrain Scanner > --- WEAPON (2) ------- (None) > --- INVENTORY (5) ---- Nuclear Core Nuclear Core Nuclear Core Terrain Scanner Peak State ------------ > --- POWER ------------ Nuclear Core > --- PROPULSION ------- Flight Unit Flight Unit Flight Unit Flight Unit > --- UTILITY ---------- Structural Scanner Terrain Scanner > --- WEAPON ----------- Rocket Launcher > --- INVENTORY -------- Nuclear Core Nuclear Core Nuclear Core Autogun [Rating: 12] Favorites ----------- Power Ion Engine Engine Ion Engine Power Core Nuclear Core Propulsion Aluminum Leg Treads Light Treads Leg Aluminum Leg Flight Unit Flight Unit Utility Terrain Scanner Device Terrain Scanner Storage Medium Storage Unit Protection Light Armor Plating Weapon EM Pulse Gun Energy Gun EM Pulse Gun Ballistic Gun Light Assault Rifle Launcher Grenade Launcher Build | -11 -10 -9 ------- Run | Yrd Mat Mat Slots Evolved 2 | . . 2 Power . | . . . Propulsion 2 | . . 2 Utility . | . . . Weapon . | . . . Parts Attached 29 | 6 14 9 Power 3 | 1 . 2 Engine 1 | 1 . . Core 2 | . . 2 Reactor . | . . . Propulsion 11 | 2 6 3 Treads 2 | 2 . . Leg 4 | . 4 . Wheel . | . . . Hover . | . . . Flight 5 | . 2 3 Utility 7 | 1 4 2 Device 4 | . 2 2 Storage 2 | 1 1 . Processor . | . . . Hackware . | . . . Protection 1 | . 1 . Artifact . | . . . Weapon 8 | 2 4 2 Energy Gun 3 | 1 2 . Energy Cannon . | . . . Ballistic Gun 3 | 1 1 1 Ballistic Cannon . | . . . Launcher 2 | . 1 1 Special Weapon . | . . . Impact Weapon . | . . . Slashing Weapon . | . . . Piercing Weapon . | . . . Special Melee Weapon . | . . . Unidentified Prototypes . | . . . Parts Lost 12 | . 2 10 Power 1 | . . 1 Propulsion 5 | . . 5 Utility 1 | . . 1 Weapon 5 | . 2 3 Highest Loss Streak 5 | . 1 5 To Critical Strikes . | . . . Average Backups 4 | 2 4 3 Power 1 | . . 2 Propulsion 1 | 1 2 . Utility . | . . . Weapon . | . . . Tool/Special . | . . . Unused Backups 4 | . 2 2 Power 3 | . 1 2 Propulsion . | . . . Utility 1 | . 1 . Weapon . | . . . Tool/Special . | . . . Average Slot Usage (%) 86 | . 89 76 Engine 11 | . 14 1 Core 1 | . . 9 Treads 8 | . 11 . Leg 12 | . 16 . Flight 7 | . . 33 Device 18 | . 17 21 Storage 4 | . 6 . Protection 1 | . 1 . Energy Gun 9 | . 11 3 Ballistic Gun 1 | . 1 3 Launcher 7 | . 8 3 Peak Build Rating 12 | 6 7 12 Average Rating 6 | 4 6 9 On Entrance 4 | . 6 6 Avg Prop Armor Cover (%) . | . . . Naked Turns . | . . . Heaviest Build 23 | 13 23 13 Greatest Support 40 | 40 40 16 Greatest Overweight (x) 2 | . . 2 Average Overweight (x) . | . . . Largest Inventory Capacity 10 | 8 10 5 Average Capacity 6 | 7 6 5 Most Carried 6 | 5 6 5 Average Carried 4 | 2 4 3 Final Capacity 8 | 8 5 5 Final Carried 5 | 3 5 4 Class Distribution -------------------- 84% | Mutant 12% | Sprinter 3% | Scavenger-Mutant Dominant Class ---------------- Mutant | -10/Materials Sprinter | -9/Materials Resources | -11 -10 -9 ----------- Run | Yrd Mat Mat Matter Collected 630 | 234 296 100 Remotely . | . . . Salvage Created 534 | . 423 111 Parts 52 | . 32 20 Haulers Intercepted 1 | . 1 . Recyclers Shooed . | . . . Parts Field Recycled . | . . . Retrieved Matter . | . . . Parts Self-Destructed . | . . . Prevented . | . . . Parts Restored . | . . . Kills | -11 -10 -9 ------- Run | Yrd Mat Mat Combat Hostiles Destroyed 20 | . 12 8 Guns 9 | . 8 1 AOE 11 | . 4 7 Classes Destroyed 9 | . 4 5 Worker 1 | . . 1 Builder 1 | . . 1 Hauler 1 | . 1 . Operator 1 | . . 1 Watcher 2 | . 2 . Swarmer 9 | . 5 4 Grunt 8 | . 7 1 Duelist 1 | . . 1 Sentry 2 | . . 2 Best Kill Streak 6 | . 5 6 Combat Bots Only 5 | . 4 5 Max Kills in Single Turn 2 | . 1 2 Gunslinging . | . . . Exploded 2 | . 1 2 Melee . | . . . Uniques/NPCs Destroyed . | . . . Combat | -11 -10 -9 -------- Run | Yrd Mat Mat Hostile Shots Fired 147 | . 59 88 Missed 46 | . 19 27 Hits 101 | . 40 61 Projectile 101 | . 40 61 Critical Strikes 2 | . . 2 Damage Taken 1328 | . 454 874 Core 469 | . 68 401 Absorbed by Shields . | . . . Core Remaining (%) 86 | 100 72 . Volleys Fired 59 | . 34 25 Largest 2 | . 2 1 Hottest 80 | . 80 40 Shots Fired 74 | . 49 25 Gun 49 | . 40 9 Cannon . | . . . Launcher 25 | . 9 16 Special . | . . . Kinetic 5 | . . 5 Thermal . | . . . Explosive 25 | . 9 16 Electromagnetic 44 | . 40 4 Robot Hit Streak 8 | . 8 4 Robot Miss Streak 3 | . 3 2 Penetration Max . | . . . Secondary Targets 2 | . 2 . Max Gunslinging Chain 1 | . 1 . Shots Hit Robots 49 | . 33 16 Core Hits 36 | . 20 16 Critical Kills . | . . . Critical Parts Destroyed . | . . . Critical Strikes . | . . . Melee Attacks . | . . . Impact . | . . . Slashing . | . . . Piercing . | . . . Sneak Attacks . | . . . Combat Hostiles . | . . . Follow-up Attacks . | . . . Damage Inflicted 1630 | . 841 789 Guns 488 | . 408 80 Cannons . | . . . Explosions 1140 | . 433 707 Melee . | . . . Ramming 2 | . . 2 Kinetic 60 | . . 60 Thermal 43 | . 43 . Explosive 1097 | . 390 707 Electromagnetic 428 | . 408 20 Impact . | . . . Slashing . | . . . Piercing . | . . . Highest Corruption 1 | . . 1 Average Corruption 1 | . . 1 Corruption Purged . | . . . Corruption Blocked . | . . . Effects 1 | . . 1 Matter Fused 1 | . . 1 Overload Shots . | . . . Overflow Damage 9 | . 7 2 Projectiles . | . . . Explosions 9 | . 7 2 Melee . | . . . Knockbacks 1 | . . 1 Impact 1 | . . 1 Kinetic . | . . . Secondary . | . . . Self-Inflicted Damage 99 | . 36 63 Shots 4 | . 1 3 Rammed 3 | . . 3 Targets Rammed 3 | . . 3 Kicked . | . . . Crushed . | . . . Highest Temperature 138 | . 138 32 Average Temperature 34 | . 48 12 Received Heat Transfer 531 | . 147 384 Siege Activations . | . . . Martial Activations . | . . . Shielding Activations . | . . . Robots Disrupted . | . . . Combat Hostiles . | . . . Robots Corrupted . | . . . Combat Hostiles . | . . . Parts Fried . | . . . Impact Corruptions . | . . . Robots Melted . | . . . Combat Hostiles . | . . . Parts Melted . | . . . Heat Transferred 50 | . 50 . Parts Sabotaged . | . . . Parts Stolen . | . . . Parts Stripped . | . . . Power Chain Reactions 2 | . 2 . Alert | -11 -10 -9 ------- Run | Yrd Mat Mat Maximum Alert Level 1 | . . 1 Low Security (%) 91 | 100 100 56 Level 1 8 | . . 43 Level 2 . | . . . Level 3 . | . . . Level 4 . | . . . Level 5 . | . . . High Security . | . . . Max Security . | . . . Peak Influence 308 | . 161 308 Initial 50 | . . 50 Average 73 | . 52 172 Influence Increases 838 | . 420 418 Destroy 0b10 Robot/C 400 | . 240 160 Destroy 0b10 Robot/NC 30 | . 15 15 Destroy Leader 76 | . 36 40 Successful Hack 34 | . 19 15 Disable Machine 90 | . 60 30 Destroy Structure 133 | . 50 83 Partial Spotted 45 | . . 45 Lose Combat Pursuer 30 | . . 30 Influence Decreases 580 | . 299 281 Entered New Map 71 | . . 71 Time Decay 389 | . 279 110 Lost Part 120 | . 20 100 Squads Dispatched 2 | . 2 . Investigation . | . . . Extermination . | . . . Reinforcement 2 | . 2 . Assault . | . . . Garrison . | . . . Intercept . | . . . Searches Triggered . | . . . Construction Impeded . | . . . Haulers Reinforced . | . . . Active Scanning Responses . | . . . Cargo Convoy Interrupts . | . . . Stealth | -11 -10 -9 --------- Run | Yrd Mat Mat Distress Signals 3 | . 1 2 Communications Jammed . | . . . Distress Signals . | . . . Times Spotted 44 | . 18 26 Peak Tracking Total 15 | . 5 15 Tactical Retreats 1 | . . 1 Traps | -11 -10 -9 ------- Run | Yrd Mat Mat Traps Triggered 1 | . 1 . Indirectly . | . . . Trap Hack Attempts . | . . . Triggered . | . . . Disarmed . | . . . Reprogrammed . | . . . Reused . | . . . Traps Extracted . | . . . Installed . | . . . Triggered . | . . . Machines | -11 -10 -9 ---------- Run | Yrd Mat Mat Machines Disabled 6 | . 4 2 Max in Single Turn 2 | . 2 1 Machines Repaired . | . . . Machines Dismantled . | . . . Machines Sabotaged . | . . . Overloaded Fab Kills . | . . . Hacking | -11 -10 -9 --------- Run | Yrd Mat Mat Machines Accessed 6 | . 4 2 Terminals 5 | . 3 2 Fabricators . | . . . Repair Stations . | . . . Recycling Units 1 | . 1 . Scanalyzers . | . . . Garrison Access . | . . . Total Hacks 16 | . 11 5 Successful 14 | . 10 4 Failed 2 | . 1 1 Catastrophic . | . . . Database Lockouts . | . . . Manual 1 | . . 1 Terminals 11 | . 6 5 Fabricators . | . . . Repair Stations . | . . . Recycling Units 5 | . 5 . Scanalyzers . | . . . Garrison Access . | . . . Terminal Hacks 9 | . 5 4 Robot Analysis 1 | . 1 . Branch Access Points 1 | . 1 . Maintenance Status 2 | . 1 1 Reinforcement Status 1 | . . 1 Hauler Manifests 2 | . 1 1 Zone Layout 2 | . 1 1 Fabricator Hacks . | . . . Repair Station Hacks . | . . . Recycling Unit Hacks 5 | . 5 . Retrieve Matter 5 | . 5 . Scanalyzer . | . . . Garrison Access Hacks . | . . . Unauthorized Hacks . | . . . Terminals . | . . . Fabricators . | . . . Repair Stations . | . . . Recycling Units . | . . . Scanalyzers . | . . . Garrison Access . | . . . Data Cores Recovered . | . . . Used . | . . . Hacking Detections 3 | . 2 1 Full Trace Events . | . . . Feedback Events . | . . . Feedback Blocked . | . . . Robot Schematics Acquired . | . . . Robots Built . | . . . Authchips . | . . . Time . | . . . Total Robot Build Rating . | . . . Part Schematics Acquired . | . . . Parts Built . | . . . Authchips . | . . . Time . | . . . Total Part Build Rating . | . . . Part Studies Acquired . | . . . Parts Repaired . | . . . Time . | . . . Parts Recycled . | . . . Recycled Matter . | . . . Retrieved Matter . | . . . Retrieved Components . | . . . Parts Scanalyzed . | . . . Part Schematics Acquired . | . . . Parts Damaged . | . . . Bothacking | -11 -10 -9 ------------ Run | Yrd Mat Mat Used RIF Installer . | . . . Robots Hacked . | . . . Non-combat . | . . . Combat . | . . . Robot Hacks Applied . | . . . Relay Couplers Released . | . . . Fabnet Peak Effective % . | . . . Robots Rewired . | . . . Allies Hacked . | . . . Hacks Repelled . | . . . Allies | -11 -10 -9 -------- Run | Yrd Mat Mat Total Allies . | . . . Largest Group . | . . . Highest-Rated Group . | . . . Highest-Rated Ally . | . . . Total Orders . | . . . Ally Attacks . | . . . Total Damage . | . . . Kills . | . . . Allies Corrupted . | . . . Allies Melted . | . . . Intel | -11 -10 -9 ------- Run | Yrd Mat Mat Active Infowar (turns) 780 | . 574 206 Sensors 656 | . 574 82 Terrain 696 | . 490 206 Structural 99 | . . 99 Robot Analysis Total 1 | . 1 . Derelict Logs Recovered . | . . . Drone Launches . | . . . Drone Recoveries . | . . . Exploration | -11 -10 -9 ------------- Run | Yrd Mat Mat Turns Passed 1147 | 62 858 227 Spaces Moved 921 | 43 537 341 Core 21 | 18 . 3 Treads 218 | 25 193 . Legs 344 | . 344 . Wheels . | . . . Hover . | . . . Flight 338 | . . 338 Fastest Speed 31 | 50 120 31 Average Speed 96 | 113 134 35 Slowest Speed 200 | 160 160 200 Overloaded Moves . | . . . Propulsion Burnouts . | . . . Robots Hopped . | . . . Potential Cave-ins . | . . . Cave-ins Triggered . | . . . Exploration Rate (%) 36 | 3 77 30 Regions Visited 2 Branch Regions . Pre-discovered Areas . | . . . Known Exits Taken . | . . . Unknown Exits Taken 2 | 1 1 . Scrap Searched . | . . . Spaces Dug . | . . . Terrain Destroyed 151 | . 47 104 Melee . | . . . Projectile . | . . . AOE 151 | . 47 104 Terrain Rammed . | . . . Walls Destroyed . | . . . Machines Disabled . | . . . Actions | -11 -10 -9 --------- Run | Yrd Mat Mat Total 1099 | 55 623 421 Wait 38 | . 10 28 Move 919 | 42 536 341 Hop . | . . . Pick Up 26 | 7 11 8 Fast Attach 9 | 2 7 . Attach 17 | 4 4 9 Detach 2 | . 1 1 Swap 11 | . 8 3 Drop 15 | . 12 3 Fire 59 | . 34 25 Melee . | . . . Ram 3 | . . 3 Kick . | . . . Crush . | . . . Escape Stasis . | . . . Rewire . | . . . Trap . | . . . Miscellaneous . | . . . Route ------- -11/Scrapyard -10/Materials (discovered 3 exits: *Mat x2 / *Min) -9/Materials History --------- Turn | Location | Event 4 | -11/Scrapyard | Discovered new exit (range 15) 63 | -11/Scrapyard | Entered Materials 288 | -10/Materials | Identified exit to Mines 288 | -10/Materials | Discovered new exit (range 15) 308 | -10/Materials | Build established: Mutant 759 | -10/Materials | Discovered new exit (range 11) 921 | -10/Materials | Entered another Materials area 921 | -9/Materials | Evolved 2 slots: Propulsion x2 1034 | -9/Materials | Lost 3 parts (1n1u1w) 1125 | -9/Materials | Core integrity fell below 50% 1143 | -9/Materials | Core integrity fell below 20% 1148 | -9/Materials | Destroyed by G-47 Trooper with Particle Gun Last Messages --------------- 01109_ K-01 Serf collects debris. 01124_ Slammed into G-47 Trooper. 01124_ Destabilizing: System corrupted (+1). 01126_ Slammed into G-47 Trooper. 01126_ Critical hit (Burn: +37). 01127_ K-01 Serf collects debris. 01127_ Slammed into G-47 Trooper. 01127_ G-47 Trooper knocked back. 01127_ Destabilizing: System interference. 01127_ Structural Scanner temporarily disabled. 01127_ Terrain Scanner temporarily disabled. 01127_ Autogun temporarily disabled. 01128_ Flight Unit destroyed. 01130_ O-16 Technician: "IFF HANDSHAKE FAILED. SECURING TERMINAL." 01130_ Flight Unit destroyed. 01131_ Nuclear Core destroyed. 01134_ Critical hit (Burn: +37). 01144_ Autogun destroyed. 01145_ System corrupted: Matter fused (-10). Map ----- +----------------------------------------------------+ | ?????????????????????????????????????????????????? | | ?????????????????????????????????????????????????? | | ?????????????????????????????????????????????????? | | ?????????????????????????????????????????????????? | | ?????????????????????????????????????????????????? | | ?????????????????????????????????????????????????? | | ?????????????????????????????????????????????????? | | ?????????????????????????????????????????????????? | | ?????????????????????????????????????????????????? | | ?????????????????????????????????????????????????? | | ?????????????????????????????????????????????????? | | ?????????????????????????????????????????????????? | | ?????????????????????????????????????????????????? | | ?????????????????????????????????????????????????? | | ?????????????????????????????????????????????????? | | ?????????????????????????????????????????????????? | | ??????????????????????????????#?#????????????????? | | ??????????????????????????? ?????????????????? | | ??????????????????????????? #?????????????????? | | ???????????????????????#""" #?????????????????? | | ???????????????????????#""" #?????????????????? | | ???????????????????????# #?????????????????? | | ???????????????????????#""" #?????????????????? | | ??????????? # ???????#""" #?????????????????? | | ??????????? + ???????#""" [#?????????????????? | | ??????????? # ???????# @Y #?????????????????? | | ??????????? # ???????# ! #?????????????????? | | ??????????? # ######## #######???????????? | | ??????????" # ########g############ ???????????? | | ???????????## gg ?????????? | | ???????????## bg ?????????? | | ??????????### Y ?????????? | | ??########?## ####### ############# ??????????? | | ??########?## #######+#########????????????????? | | ??## ? # # ##??????????????????????? | | ??## # # """ ##??????????????????????? | | ??## # # """ ##??????????????????????? | | ??## # # """ ##??????????#???????????? | | ??## + + ##?????? ???????????????? | | ??## # # *##??????????????????????? | | ??## ????? # # ##??????????????????????? | | ??## ?????? # # [ "T" ##??############## ? | | ???# # # ##??####################? | | ???########## ###########??## ? | | ???## # ############### ? | | ???### """ + ############### ? | | ????## """ # ################ | | ????## ""? # ################ | | ????## ??? # # # | | ????## ???? #######+#### # T """ """ ## | +----------------------------------------------------+ Best States ------------- Heat Dissipation 28 Energy Generation 14 Energy Capacity 250 Matter Stores 300 Matter Capacity 300 Sight Range 16 Robot Scan Range 14 Terrain Scan Range 14 Terrain Scan Density 10 Armor Coverage 150 Evasion (%) 63 Recoil Reduction 2 Item Schematics ----------------- None Robot Schematics ------------------ None Fabricated ------------ Nothing Repaired ---------- Nothing Studied --------- None Alien Tech Used ----------------- None Achievements -------------- None Challenges ------------ None Game ------ Seed AlphaStasisHammerchucker Manual? 0 Play Time 00:24:55 Cumulative 3.5 hours Start 2025.12.03 @ 20:08:58 End 2025.12.03 @ 20:30:20 Sessions 1 Manual Loads 0 Difficulty Rogue Special Mode None Game No. 7 Rogue 7 Adventurer 0 Explorer 0 Win Type - Total 0 Types 0/0/0/0/0/0/0/0/0/0 Lore% 3 Gallery% 6 Achievement% 9 Wizard Run 0 Options --------- Layout 1 ASCII 0 Keyboard 0 Movement Mouse Keybinds 0 Fullscreen 2 Font 24/Proggy Map View 50x35 Zoom Use 0% Tactical HUD 1 Map Filters NONE Filters NONE Steam 1 RUN: 20a9c67f-b5f3-422c-b483-244c0a545cae